[Event "FIDE World Rapid Chess Championship 2021"]
[White "Szpar, Milosz"]
[Black "Vokhidov, Shamsiddin"]
[WhiteFideId "1184989"]
[BlackFideId "14204223"]
[WhiteElo "2315"]
[BlackElo "2546"]
[Result "1/2-1/2"]
[Round "05"]
[TimeControl "900+10"]
[Date "2021.12.26"]
[WhiteClock "0:00:32"]
[BlackClock "0:00:00"]

1. e4 {[%clk 0:00:32]}  c5 {[%clk 0:00:00]} 2. Nf3 {[%clk 0:00:32]}  d6 {[%clk 0:00:00]} 3. d4 {[%clk 0:00:32]}  cxd4 {[%clk 0:00:00]} 4. Qxd4 {[%clk 0:00:32]}  Nf6 {[%clk 0:00:00]} 5. Nc3 {[%clk 0:00:32]}  Nc6 {[%clk 0:00:00]} 6. Bb5 {[%clk 0:00:32]}  Bd7 {[%clk 0:00:00]} 7. Bxc6 {[%clk 0:00:32]}  Bxc6 {[%clk 0:00:00]} 8. Bg5 {[%clk 0:00:32]}  e6 {[%clk 0:00:00]} 9. O-O-O {[%clk 0:00:32]}  Be7 {[%clk 0:00:00]} 10. Qd3 {[%clk 0:00:32]}  Qa5 {[%clk 0:00:00]} 11. h4 {[%clk 0:00:32]}  h6 {[%clk 0:00:00]} 12. Bd2 {[%clk 0:00:32]}  Qa6 {[%clk 0:00:00]} 13. Qxa6 {[%clk 0:00:32]}  bxa6 {[%clk 0:00:00]} 14. Rde1 {[%clk 0:00:32]}  e5 {[%clk 0:00:00]} 15. Nh2 {[%clk 0:00:32]}  O-O-O {[%clk 0:00:00]} 16. f3 {[%clk 0:00:32]}  Rhe8 {[%clk 0:00:00]} 17. Ng4 {[%clk 0:00:32]}  Nxg4 {[%clk 0:00:00]} 18. fxg4 {[%clk 0:00:32]}  Kd7 {[%clk 0:00:00]} 19. Be3 {[%clk 0:00:32]}  Ra8 {[%clk 0:00:00]} 20. Rd1 {[%clk 0:00:32]}  Rec8 {[%clk 0:00:00]} 21. b3 {[%clk 0:00:32]}  Rab8 {[%clk 0:00:00]} 22. Nd5 {[%clk 0:00:32]}  Bxd5 {[%clk 0:00:00]} 23. Rxd5 {[%clk 0:00:32]}  Rc3 {[%clk 0:00:00]} 24. Rd3 {[%clk 0:00:32]}  Rxd3 {[%clk 0:00:00]} 25. cxd3 {[%clk 0:00:32]}  Rb7 {[%clk 0:00:00]} 26. g3 {[%clk 0:00:32]}  d5 {[%clk 0:00:00]} 27. exd5 {[%clk 0:00:32]}  Ba3+ {[%clk 0:00:00]} 28. Kd1 {[%clk 0:00:32]}  Kd6 {[%clk 0:00:00]} 29. Rf1 {[%clk 0:00:32]}  Kxd5 {[%clk 0:00:00]} 30. Rf2 {[%clk 0:00:32]}  Bd6 {[%clk 0:00:00]} 31. Rc2 {[%clk 0:00:32]}  e4 {[%clk 0:00:00]} 32. Ke2 {[%clk 0:00:32]}  exd3+ {[%clk 0:00:00]} 33. Kxd3 {[%clk 0:00:32]}  a5 {[%clk 0:00:00]} 34. Rf2 {[%clk 0:00:32]}  Bxg3 {[%clk 0:00:00]} 35. Rc2 {[%clk 0:00:32]}  Bd6 {[%clk 0:00:00]} 36. Rc4 {[%clk 0:00:32]}  a6 {[%clk 0:00:00]} 37. Ra4 {[%clk 0:00:32]}  Bb4 {[%clk 0:00:00]} 38. Bf2 {[%clk 0:00:32]}  Rd7 {[%clk 0:00:00]} 39. a3 {[%clk 0:00:32]}  Ke5+ {[%clk 0:00:00]} 40. Ke2 {[%clk 0:00:32]}  Bc3 {[%clk 0:00:00]} 41. Rc4 {[%clk 0:00:32]}  Bb2 {[%clk 0:00:00]} 42. Bg3+ {[%clk 0:00:32]}  Kd5 {[%clk 0:00:00]} 43. Ra4 {[%clk 0:00:32]}  Kc6 {[%clk 0:00:00]} 44. Rxa5 {[%clk 0:00:32]}  Kb7 {[%clk 0:00:00]} 45. Ra4 {[%clk 0:00:32]}  Re7+ {[%clk 0:00:00]} 1/2-1/2


[Site "http://www.Chess.com"]

[Event "FIDE World Rapid Chess Championship 2021"]
[White "Peng, Li Min"]
[Black "Zvjaginsev, Vadim"]
[WhiteFideId "14112620"]
[BlackFideId "4113403"]
[WhiteElo "2411"]
[BlackElo "2539"]
[Result "0-1"]
[Round "05"]
[TimeControl "900+10"]
[Date "2021.12.26"]
[WhiteClock "0:00:15"]
[BlackClock "0:04:10"]

1. Nf3 {[%clk 0:00:15]}  d6 {[%clk 0:04:10]} 2. e4 {[%clk 0:00:15]}  Nf6 {[%clk 0:04:10]} 3. Nc3 {[%clk 0:00:15]}  g6 {[%clk 0:04:10]} 4. d4 {[%clk 0:00:15]}  Bg7 {[%clk 0:04:10]} 5. Be2 {[%clk 0:00:15]}  O-O {[%clk 0:04:10]} 6. O-O {[%clk 0:00:15]}  a6 {[%clk 0:04:10]} 7. a4 {[%clk 0:00:15]}  Nc6 {[%clk 0:04:10]} 8. h3 {[%clk 0:00:15]}  e5 {[%clk 0:04:10]} 9. dxe5 {[%clk 0:00:15]}  Nxe5 {[%clk 0:04:10]} 10. Nxe5 {[%clk 0:00:15]}  dxe5 {[%clk 0:04:10]} 11. Qxd8 {[%clk 0:00:15]}  Rxd8 {[%clk 0:04:10]} 12. Bg5 {[%clk 0:00:15]}  Be6 {[%clk 0:04:10]} 13. Rfd1 {[%clk 0:00:15]}  h6 {[%clk 0:04:10]} 14. Bxf6 {[%clk 0:00:15]}  Bxf6 {[%clk 0:04:10]} 15. Nd5 {[%clk 0:00:15]}  Bxd5 {[%clk 0:04:10]} 16. Rxd5 {[%clk 0:00:15]}  Rxd5 {[%clk 0:04:10]} 17. exd5 {[%clk 0:00:15]}  a5 {[%clk 0:04:10]} 18. Ra3 {[%clk 0:00:15]}  Be7 {[%clk 0:04:10]} 19. Rb3 {[%clk 0:00:15]}  b6 {[%clk 0:04:10]} 20. Bb5 {[%clk 0:00:15]}  Rf8 {[%clk 0:04:10]} 21. Re3 {[%clk 0:00:15]}  Bd6 {[%clk 0:04:10]} 22. Kf1 {[%clk 0:00:15]}  f5 {[%clk 0:04:10]} 23. Bd7 {[%clk 0:00:15]}  Kg7 {[%clk 0:04:10]} 24. c3 {[%clk 0:00:15]}  Kf6 {[%clk 0:04:10]} 25. f3 {[%clk 0:00:15]}  h5 {[%clk 0:04:10]} 26. h4 {[%clk 0:00:15]}  g5 {[%clk 0:04:10]} 27. hxg5+ {[%clk 0:00:15]}  Kxg5 {[%clk 0:04:10]} 28. Re1 {[%clk 0:00:15]}  Kf4 {[%clk 0:04:10]} 29. Rb1 {[%clk 0:00:15]}  h4 {[%clk 0:04:10]} 30. b4 {[%clk 0:00:15]}  h3 {[%clk 0:04:10]} 31. Kf2 {[%clk 0:00:15]}  hxg2 {[%clk 0:04:10]} 32. Kxg2 {[%clk 0:00:15]}  Rg8+ {[%clk 0:04:10]} 33. Kf2 {[%clk 0:00:15]}  Rg3 {[%clk 0:04:10]} 34. Bxf5 {[%clk 0:00:15]}  Rxf3+ {[%clk 0:04:10]} 35. Ke2 {[%clk 0:00:15]}  e4 {[%clk 0:04:10]} 36. Bd7 {[%clk 0:00:15]}  Rxc3 {[%clk 0:04:10]} 37. Rf1+ {[%clk 0:00:15]}  Ke5 {[%clk 0:04:10]} 38. bxa5 {[%clk 0:00:15]}  bxa5 {[%clk 0:04:10]} 39. Bc6 {[%clk 0:00:15]}  Bb4 {[%clk 0:04:10]} 40. Rh1 {[%clk 0:00:15]}  Rc2+ {[%clk 0:04:10]} 41. Kd1 {[%clk 0:00:15]}  Rd2+ {[%clk 0:04:10]} 42. Kc1 {[%clk 0:00:15]}  e3 {[%clk 0:04:10]} 43. Re1 {[%clk 0:00:15]}  Kd4 {[%clk 0:04:10]} 44. Rd1 {[%clk 0:00:15]}  Ba3+ {[%clk 0:04:10]} 0-1


[Site "http://www.Chess.com"]

[Event "FIDE World Rapid Chess Championship 2021"]
[White "Kanarek, Marcel"]
[Black "Gabuzyan, Hovhannes"]
[WhiteFideId "1126822"]
[BlackFideId "13303732"]
[WhiteElo "2296"]
[BlackElo "2535"]
[Result "1/2-1/2"]
[Round "05"]
[TimeControl "900+10"]
[Date "2021.12.26"]
[WhiteClock "0:00:20"]
[BlackClock "0:14:10"]

1. e4 {[%clk 0:00:20]}  c5 {[%clk 0:14:10]} 2. Nf3 {[%clk 0:00:20]}  d6 {[%clk 0:14:10]} 3. d4 {[%clk 0:00:20]}  cxd4 {[%clk 0:14:10]} 4. Nxd4 {[%clk 0:00:20]}  Nf6 {[%clk 0:14:10]} 5. Nc3 {[%clk 0:00:20]}  a6 {[%clk 0:14:10]} 6. a4 {[%clk 0:00:20]}  Bd7 {[%clk 0:14:10]} 7. Be2 {[%clk 0:00:20]}  Nc6 {[%clk 0:14:10]} 8. O-O {[%clk 0:00:20]}  g6 {[%clk 0:14:10]} 9. Nb3 {[%clk 0:00:20]}  Na5 {[%clk 0:14:10]} 10. Nxa5 {[%clk 0:00:20]}  Qxa5 {[%clk 0:14:10]} 11. Be3 {[%clk 0:00:20]}  Bc6 {[%clk 0:14:10]} 12. f3 {[%clk 0:00:20]}  Bg7 {[%clk 0:14:10]} 13. Qd2 {[%clk 0:00:20]}  Nd7 {[%clk 0:14:10]} 14. Bd4 {[%clk 0:00:20]}  Bxd4+ {[%clk 0:14:10]} 15. Qxd4 {[%clk 0:00:20]}  Qc5 {[%clk 0:14:10]} 16. Qxc5 {[%clk 0:00:20]}  dxc5 {[%clk 0:14:10]} 17. a5 {[%clk 0:00:20]}  e6 {[%clk 0:14:10]} 18. Rfd1 {[%clk 0:00:20]}  Ke7 {[%clk 0:14:10]} 19. Kf2 {[%clk 0:00:20]}  g5 {[%clk 0:14:10]} 20. h4 {[%clk 0:00:20]}  h6 {[%clk 0:14:10]} 21. Rh1 {[%clk 0:00:20]}  Ne5 {[%clk 0:14:10]} 22. g3 {[%clk 0:00:20]}  Rad8 {[%clk 0:14:10]} 23. Ke3 {[%clk 0:00:20]}  Rhg8 {[%clk 0:14:10]} 24. hxg5 {[%clk 0:00:20]}  hxg5 {[%clk 0:14:10]} 25. f4 {[%clk 0:00:20]}  gxf4+ {[%clk 0:14:10]} 26. gxf4 {[%clk 0:00:20]}  Ng4+ {[%clk 0:14:10]} 27. Bxg4 {[%clk 0:00:20]}  Rxg4 {[%clk 0:14:10]} 28. Rag1 {[%clk 0:00:20]}  Rxg1 {[%clk 0:14:10]} 29. Rxg1 {[%clk 0:00:20]}  Rd4 {[%clk 0:14:10]} 30. b3 {[%clk 0:00:20]}  Rd8 {[%clk 0:14:10]} 31. Na4 {[%clk 0:00:20]}  c4 {[%clk 0:14:10]} 32. Nb6 {[%clk 0:00:20]}  cxb3 {[%clk 0:14:10]} 33. cxb3 {[%clk 0:00:20]}  Rh8 {[%clk 0:14:10]} 34. Kd4 {[%clk 0:00:20]}  Rh3 {[%clk 0:14:10]} 35. Rg8 {[%clk 0:00:20]}  f6 {[%clk 0:14:10]} 36. e5 {[%clk 0:00:20]}  f5 {[%clk 0:14:10]} 37. Rg7+ {[%clk 0:00:20]}  Kf8 {[%clk 0:14:10]} 38. Rg6 {[%clk 0:00:20]}  Rxb3 {[%clk 0:14:10]} 39. Kc5 {[%clk 0:00:20]}  Ke7 {[%clk 0:14:10]} 40. Rg7+ {[%clk 0:00:20]}  Kf8 {[%clk 0:14:10]} 41. Rg6 {[%clk 0:00:20]}  Rc3+ {[%clk 0:14:10]} 42. Kd6 {[%clk 0:00:20]}  Be8 {[%clk 0:14:10]} 43. Rf6+ {[%clk 0:00:20]}  Bf7 {[%clk 0:14:10]} 44. Nd7+ {[%clk 0:00:20]}  Ke8 {[%clk 0:14:10]} 45. Nc5 {[%clk 0:00:20]}  Rc4 {[%clk 0:14:10]} 46. Nxb7 {[%clk 0:00:20]}  Rxf4 {[%clk 0:14:10]} 47. Nc5 {[%clk 0:00:20]}  Rd4+ {[%clk 0:14:10]} 48. Kc6 {[%clk 0:00:20]}  Ke7 {[%clk 0:14:10]} 49. Nxa6 {[%clk 0:00:20]}  Rd5 {[%clk 0:14:10]} 50. Nc5 {[%clk 0:00:20]}  Rxe5 {[%clk 0:14:10]} 51. Rh6 {[%clk 0:00:20]}  Be8+ {[%clk 0:14:10]} 52. Kb6 {[%clk 0:00:20]}  Kd6 {[%clk 0:14:10]} 53. Nb7+ {[%clk 0:00:20]}  Kd5 {[%clk 0:14:10]} 54. Rh8 {[%clk 0:00:20]}  Bg6 {[%clk 0:14:10]} 55. a6 {[%clk 0:00:20]}  Re1 {[%clk 0:14:10]} 56. a7 {[%clk 0:00:20]}  Rb1+ {[%clk 0:14:10]} 57. Kc7 {[%clk 0:00:20]}  Ra1 {[%clk 0:14:10]} 58. a8=Q {[%clk 0:00:20]}  Rxa8 {[%clk 0:14:10]} 59. Rxa8 {[%clk 0:00:20]}  f4 {[%clk 0:14:10]} 60. Rd8+ {[%clk 0:00:20]}  Ke5 {[%clk 0:14:10]} 61. Nd6 {[%clk 0:00:20]}  f3 {[%clk 0:14:10]} 62. Nc4+ {[%clk 0:00:20]}  Kf4 {[%clk 0:14:10]} 63. Rd4+ {[%clk 0:00:20]}  Be4 {[%clk 0:14:10]} 64. Nd2 {[%clk 0:00:20]}  Ke3 {[%clk 0:14:10]} 65. Rxe4+ {[%clk 0:00:20]}  Kxd2 {[%clk 0:14:10]} 66. Kd6 {[%clk 0:00:20]}  f2 {[%clk 0:14:10]} 67. Rf4 {[%clk 0:00:20]}  Ke2 {[%clk 0:14:10]} 68. Rxf2+ {[%clk 0:00:20]}  Kxf2 {[%clk 0:14:10]} 69. Kxe6 {[%clk 0:00:20]} 1/2-1/2


[Site "http://www.Chess.com"]

[Event "FIDE World Rapid Chess Championship 2021"]
[White "Yunusov, Mukhammad"]
[Black "Durarbayli, Vasif"]
[WhiteFideId "14700930"]
[BlackFideId "13402935"]
[WhiteElo "1832"]
[BlackElo "2532"]
[Result "0-1"]
[Round "05"]
[TimeControl "900+10"]
[Date "2021.12.26"]
[WhiteClock "0:01:04"]
[BlackClock "0:00:38"]

1. d4 {[%clk 0:01:04]}  Nf6 {[%clk 0:00:38]} 2. Nf3 {[%clk 0:01:04]}  e6 {[%clk 0:00:38]} 3. e3 {[%clk 0:01:04]}  b6 {[%clk 0:00:38]} 4. Bd3 {[%clk 0:01:04]}  Bb7 {[%clk 0:00:38]} 5. O-O {[%clk 0:01:04]}  d5 {[%clk 0:00:38]} 6. Nbd2 {[%clk 0:01:04]}  Nbd7 {[%clk 0:00:38]} 7. b3 {[%clk 0:01:04]}  Bd6 {[%clk 0:00:38]} 8. Bb2 {[%clk 0:01:04]}  c5 {[%clk 0:00:38]} 9. Ne5 {[%clk 0:01:04]}  Qe7 {[%clk 0:00:38]} 10. f4 {[%clk 0:01:04]}  a6 {[%clk 0:00:38]} 11. a4 {[%clk 0:01:04]}  Ne4 {[%clk 0:00:38]} 12. Bxe4 {[%clk 0:01:04]}  dxe4 {[%clk 0:00:38]} 13. Nxd7 {[%clk 0:01:04]}  Qxd7 {[%clk 0:00:38]} 14. Nc4 {[%clk 0:01:04]}  Rd8 {[%clk 0:00:38]} 15. Nxb6 {[%clk 0:01:04]}  Qc7 {[%clk 0:00:38]} 16. Nc4 {[%clk 0:01:04]}  Be7 {[%clk 0:00:38]} 17. Qg4 {[%clk 0:01:04]}  Bf6 {[%clk 0:00:38]} 18. dxc5 {[%clk 0:01:04]}  h5 {[%clk 0:00:38]} 19. Qe2 {[%clk 0:01:04]}  Bxb2 {[%clk 0:00:38]} 20. Nxb2 {[%clk 0:01:04]}  Qxc5 {[%clk 0:00:38]} 21. Rad1 {[%clk 0:01:04]}  Rc8 {[%clk 0:00:38]} 22. Nc4 {[%clk 0:01:04]}  Bd5 {[%clk 0:00:38]} 23. Rd4 {[%clk 0:01:04]}  g6 {[%clk 0:00:38]} 24. Rc1 {[%clk 0:01:04]}  O-O {[%clk 0:00:38]} 25. Qd2 {[%clk 0:01:04]}  Rc7 {[%clk 0:00:38]} 26. a5 {[%clk 0:01:04]}  Rb8 {[%clk 0:00:38]} 27. Nb6 {[%clk 0:01:04]}  Qc3 {[%clk 0:00:38]} 28. Qxc3 {[%clk 0:01:04]}  Rxc3 {[%clk 0:00:38]} 29. Nxd5 {[%clk 0:01:04]}  exd5 {[%clk 0:00:38]} 30. Rxd5 {[%clk 0:01:04]}  Rbxb3 {[%clk 0:00:38]} 31. cxb3 {[%clk 0:01:04]}  Rxc1+ {[%clk 0:00:38]} 32. Kf2 {[%clk 0:01:04]}  Rc2+ {[%clk 0:00:38]} 33. Kf1 {[%clk 0:01:04]}  Rc3 {[%clk 0:00:38]} 34. b4 {[%clk 0:01:04]}  Rxe3 {[%clk 0:00:38]} 35. Rd6 {[%clk 0:01:04]}  Rb3 {[%clk 0:00:38]} 36. Rxa6 {[%clk 0:01:04]}  Rxb4 {[%clk 0:00:38]} 37. Rb6 {[%clk 0:01:04]}  Ra4 {[%clk 0:00:38]} 38. Ke2 {[%clk 0:01:04]}  Rxa5 {[%clk 0:00:38]} 39. Ke3 {[%clk 0:01:04]}  Ra4 {[%clk 0:00:38]} 40. f5 {[%clk 0:01:04]}  gxf5 {[%clk 0:00:38]} 41. Kf4 {[%clk 0:01:04]}  Ra5 {[%clk 0:00:38]} 42. Rh6 {[%clk 0:01:04]}  Ra2 {[%clk 0:00:38]} 43. Rxh5 {[%clk 0:01:04]}  Rf2+ {[%clk 0:00:38]} 44. Kg3 {[%clk 0:01:04]}  e3 {[%clk 0:00:38]} 45. Rh6 {[%clk 0:01:04]}  f4+ {[%clk 0:00:38]} 0-1


[Site "http://www.Chess.com"]

[Event "FIDE World Rapid Chess Championship 2021"]
[White "Murzin, Volodar"]
[Black "Jakubowski, Krzysztof"]
[WhiteFideId "44155573"]
[BlackFideId "1112848"]
[WhiteElo "2523"]
[BlackElo "2399"]
[Result "1-0"]
[Round "05"]
[TimeControl "900+10"]
[Date "2021.12.26"]
[WhiteClock "0:00:16"]
[BlackClock "0:00:46"]

1. e4 {[%clk 0:00:16]}  e5 {[%clk 0:00:46]} 2. Nf3 {[%clk 0:00:16]}  Nc6 {[%clk 0:00:46]} 3. Bb5 {[%clk 0:00:16]}  a6 {[%clk 0:00:46]} 4. Ba4 {[%clk 0:00:16]}  Nf6 {[%clk 0:00:46]} 5. O-O {[%clk 0:00:16]}  Be7 {[%clk 0:00:46]} 6. d3 {[%clk 0:00:16]}  d6 {[%clk 0:00:46]} 7. c3 {[%clk 0:00:16]}  O-O {[%clk 0:00:46]} 8. Nbd2 {[%clk 0:00:16]}  Nb8 {[%clk 0:00:46]} 9. Re1 {[%clk 0:00:16]}  Nbd7 {[%clk 0:00:46]} 10. Nf1 {[%clk 0:00:16]}  Re8 {[%clk 0:00:46]} 11. Ng3 {[%clk 0:00:16]}  Bf8 {[%clk 0:00:46]} 12. d4 {[%clk 0:00:16]}  b5 {[%clk 0:00:46]} 13. Bc2 {[%clk 0:00:16]}  Bb7 {[%clk 0:00:46]} 14. a4 {[%clk 0:00:16]}  c5 {[%clk 0:00:46]} 15. d5 {[%clk 0:00:16]}  c4 {[%clk 0:00:46]} 16. a5 {[%clk 0:00:16]}  Nc5 {[%clk 0:00:46]} 17. Be3 {[%clk 0:00:16]}  Qc7 {[%clk 0:00:46]} 18. Nd2 {[%clk 0:00:16]}  Bc8 {[%clk 0:00:46]} 19. h3 {[%clk 0:00:16]}  g6 {[%clk 0:00:46]} 20. Nh1 {[%clk 0:00:16]}  Rb8 {[%clk 0:00:46]} 21. g4 {[%clk 0:00:16]}  Nfd7 {[%clk 0:00:46]} 22. Ng3 {[%clk 0:00:16]}  b4 {[%clk 0:00:46]} 23. Qe2 {[%clk 0:00:16]}  bxc3 {[%clk 0:00:46]} 24. bxc3 {[%clk 0:00:16]}  Nd3 {[%clk 0:00:46]} 25. Bxd3 {[%clk 0:00:16]}  cxd3 {[%clk 0:00:46]} 26. Qxd3 {[%clk 0:00:16]}  Nc5 {[%clk 0:00:46]} 27. Qc4 {[%clk 0:00:16]}  Rb5 {[%clk 0:00:46]} 28. Reb1 {[%clk 0:00:16]}  Bd7 {[%clk 0:00:46]} 29. Rxb5 {[%clk 0:00:16]}  axb5 {[%clk 0:00:46]} 30. Qb4 {[%clk 0:00:16]}  Ra8 {[%clk 0:00:46]} 31. Ne2 {[%clk 0:00:16]}  Nd3 {[%clk 0:00:46]} 32. Qb1 {[%clk 0:00:16]}  Nf4 {[%clk 0:00:46]} 33. Bxf4 {[%clk 0:00:16]}  exf4 {[%clk 0:00:46]} 34. Qb4 {[%clk 0:00:16]}  h5 {[%clk 0:00:46]} 35. f3 {[%clk 0:00:16]}  Qd8 {[%clk 0:00:46]} 36. Kg2 {[%clk 0:00:16]}  hxg4 {[%clk 0:00:46]} 37. fxg4 {[%clk 0:00:16]}  Bxg4 {[%clk 0:00:46]} 38. hxg4 {[%clk 0:00:16]}  Qh4 {[%clk 0:00:46]} 39. Nf3 {[%clk 0:00:16]}  Qxg4+ {[%clk 0:00:46]} 40. Kf2 {[%clk 0:00:16]}  Be7 {[%clk 0:00:46]} 41. Rh1 {[%clk 0:00:16]}  Bf6 {[%clk 0:00:46]} 42. Qxd6 {[%clk 0:00:16]}  Bxc3 {[%clk 0:00:46]} 43. Rh4 {[%clk 0:00:16]}  Qc8 {[%clk 0:00:46]} 44. Nxc3 {[%clk 0:00:16]}  Qxc3 {[%clk 0:00:46]} 45. Qxf4 {[%clk 0:00:16]}  b4 {[%clk 0:00:46]} 46. Qe5 {[%clk 0:00:16]}  Qxe5 {[%clk 0:00:46]} 47. Nxe5 {[%clk 0:00:16]}  Rxa5 {[%clk 0:00:46]} 48. Ke3 {[%clk 0:00:16]}  f5 {[%clk 0:00:46]} 49. d6 {[%clk 0:00:16]} 1-0


[Site "http://www.Chess.com"]

[Event "FIDE World Rapid Chess Championship 2021"]
[White "Lima, Darcy"]
[Black "Aditya, Mittal"]
[WhiteFideId "2100045"]
[BlackFideId "35042025"]
[WhiteElo "2505"]
[BlackElo "1488"]
[Result "0-1"]
[Round "05"]
[TimeControl "900+10"]
[Date "2021.12.26"]
[WhiteClock "0:09:34"]
[BlackClock "0:11:46"]

1. g3 {[%clk 0:09:34]}  d5 {[%clk 0:11:46]} 2. Bg2 {[%clk 0:09:34]}  Nf6 {[%clk 0:11:46]} 3. d3 {[%clk 0:09:34]}  c5 {[%clk 0:11:46]} 4. f4 {[%clk 0:09:34]}  Nc6 {[%clk 0:11:46]} 5. Nf3 {[%clk 0:09:34]}  g6 {[%clk 0:11:46]} 6. O-O {[%clk 0:09:34]}  Bg7 {[%clk 0:11:46]} 7. Nc3 {[%clk 0:09:34]}  d4 {[%clk 0:11:46]} 8. Na4 {[%clk 0:09:34]}  Nd7 {[%clk 0:11:46]} 9. c4 {[%clk 0:09:34]}  a6 {[%clk 0:11:46]} 10. b3 {[%clk 0:09:34]}  Qc7 {[%clk 0:11:46]} 11. Rb1 {[%clk 0:09:34]}  b5 {[%clk 0:11:46]} 12. Nb2 {[%clk 0:09:34]}  Bb7 {[%clk 0:11:46]} 13. a3 {[%clk 0:09:34]}  O-O {[%clk 0:11:46]} 14. Qc2 {[%clk 0:09:34]}  Rfe8 {[%clk 0:11:46]} 15. Nd1 {[%clk 0:09:34]}  e5 {[%clk 0:11:46]} 16. e4 {[%clk 0:09:34]}  dxe3 {[%clk 0:11:46]} 17. Nxe3 {[%clk 0:09:34]}  Ne7 {[%clk 0:11:46]} 18. Ng4 {[%clk 0:09:34]}  Nf5 {[%clk 0:11:46]} 19. fxe5 {[%clk 0:09:34]}  h5 {[%clk 0:11:46]} 20. Ne3 {[%clk 0:09:34]}  Bxf3 {[%clk 0:11:46]} 21. Bxf3 {[%clk 0:09:34]}  Nd4 {[%clk 0:11:46]} 22. Nd5 {[%clk 0:09:34]}  Qa7 {[%clk 0:11:46]} 23. Qg2 {[%clk 0:09:34]}  Nxf3+ {[%clk 0:11:46]} 24. Qxf3 {[%clk 0:09:34]}  Nxe5 {[%clk 0:11:46]} 25. Qd1 {[%clk 0:09:34]}  Qd7 {[%clk 0:11:46]} 26. Bb2 {[%clk 0:09:34]}  Rad8 {[%clk 0:11:46]} 27. Qd2 {[%clk 0:09:34]}  Qg4 {[%clk 0:11:46]} 28. Bxe5 {[%clk 0:09:34]}  Rxe5 {[%clk 0:11:46]} 29. Rbe1 {[%clk 0:09:34]}  Rde8 {[%clk 0:11:46]} 30. Rxe5 {[%clk 0:09:34]}  Bxe5 {[%clk 0:11:46]} 31. Kh1 {[%clk 0:09:34]}  Bd4 {[%clk 0:11:46]} 32. Qf4 {[%clk 0:09:34]}  Qxf4 {[%clk 0:11:46]} 33. gxf4 {[%clk 0:09:34]}  Re2 {[%clk 0:11:46]} 34. b4 {[%clk 0:09:34]}  Rd2 {[%clk 0:11:46]} 35. Rf3 {[%clk 0:09:34]}  Ra2 {[%clk 0:11:46]} 36. cxb5 {[%clk 0:09:34]}  axb5 {[%clk 0:11:46]} 37. Nc7 {[%clk 0:09:34]}  Rxa3 {[%clk 0:11:46]} 38. Nxb5 {[%clk 0:09:34]}  Rb3 {[%clk 0:11:46]} 39. Nxd4 {[%clk 0:09:34]}  cxd4 {[%clk 0:11:46]} 40. f5 {[%clk 0:09:34]}  g5 {[%clk 0:11:46]} 41. h4 {[%clk 0:09:34]}  g4 {[%clk 0:11:46]} 42. Rf4 {[%clk 0:09:34]}  Rxb4 {[%clk 0:11:46]} 43. f6 {[%clk 0:09:34]}  Kh7 {[%clk 0:11:46]} 44. Kg2 {[%clk 0:09:34]}  Kg6 {[%clk 0:11:46]} 45. Kg3 {[%clk 0:09:34]}  Ra4 {[%clk 0:11:46]} 46. Kg2 {[%clk 0:09:34]}  Rb4 {[%clk 0:11:46]} 47. Kg3 {[%clk 0:09:34]}  Ra4 {[%clk 0:11:46]} 48. Kg2 {[%clk 0:09:34]}  Ra3 {[%clk 0:11:46]} 49. Rxd4 {[%clk 0:09:34]}  Kxf6 {[%clk 0:11:46]} 50. Rd5 {[%clk 0:09:34]}  Ke6 {[%clk 0:11:46]} 51. Rxh5 {[%clk 0:09:34]}  Rxd3 {[%clk 0:11:46]} 52. Rg5 {[%clk 0:09:34]}  f5 {[%clk 0:11:46]} 53. h5 {[%clk 0:09:34]}  Ke5 {[%clk 0:11:46]} 54. h6 {[%clk 0:09:34]}  Rh3 {[%clk 0:11:46]} 55. Rg6 {[%clk 0:09:34]}  Kf4 {[%clk 0:11:46]} 56. Ra6 {[%clk 0:09:34]}  Kg5 {[%clk 0:11:46]} 0-1


[Site "http://www.Chess.com"]

[Event "FIDE World Rapid Chess Championship 2021"]
[White "Gajewski, Grzegorz"]
[Black "Mikhalevski, Victor"]
[WhiteFideId "1116207"]
[BlackFideId "2801914"]
[WhiteElo "2496"]
[BlackElo "2366"]
[Result "1-0"]
[Round "05"]
[TimeControl "900+10"]
[Date "2021.12.26"]
[WhiteClock "0:02:48"]
[BlackClock "0:01:43"]

1. c4 {[%clk 0:02:48]}  Nf6 {[%clk 0:01:43]} 2. Nc3 {[%clk 0:02:48]}  d5 {[%clk 0:01:43]} 3. cxd5 {[%clk 0:02:48]}  Nxd5 {[%clk 0:01:43]} 4. g3 {[%clk 0:02:48]}  e5 {[%clk 0:01:43]} 5. Bg2 {[%clk 0:02:48]}  Nb6 {[%clk 0:01:43]} 6. d3 {[%clk 0:02:48]}  Be7 {[%clk 0:01:43]} 7. Be3 {[%clk 0:02:48]}  O-O {[%clk 0:01:43]} 8. Rc1 {[%clk 0:02:48]}  Nc6 {[%clk 0:01:43]} 9. Bxc6 {[%clk 0:02:48]}  bxc6 {[%clk 0:01:43]} 10. Nf3 {[%clk 0:02:48]}  f6 {[%clk 0:01:43]} 11. Qb3+ {[%clk 0:02:48]}  Kh8 {[%clk 0:01:43]} 12. Ne4 {[%clk 0:02:48]}  f5 {[%clk 0:01:43]} 13. Nc5 {[%clk 0:02:48]}  f4 {[%clk 0:01:43]} 14. gxf4 {[%clk 0:02:48]}  exf4 {[%clk 0:01:43]} 15. Bd4 {[%clk 0:02:48]}  Bf6 {[%clk 0:01:43]} 16. Bxf6 {[%clk 0:02:48]}  Qxf6 {[%clk 0:01:43]} 17. Rg1 {[%clk 0:02:48]}  Nd5 {[%clk 0:01:43]} 18. Ne4 {[%clk 0:02:48]}  Qh6 {[%clk 0:01:43]} 19. Qc4 {[%clk 0:02:48]}  Rb8 {[%clk 0:01:43]} 20. b3 {[%clk 0:02:48]}  Bd7 {[%clk 0:01:43]} 21. Ne5 {[%clk 0:02:48]}  Be8 {[%clk 0:01:43]} 22. Qc5 {[%clk 0:02:48]}  g6 {[%clk 0:01:43]} 23. Qxa7 {[%clk 0:02:48]}  f3 {[%clk 0:01:43]} 24. e3 {[%clk 0:02:48]}  Qxh2 {[%clk 0:01:43]} 25. Kd2 {[%clk 0:02:48]}  Rb6 {[%clk 0:01:43]} 26. Qa3 {[%clk 0:02:48]}  Kg7 {[%clk 0:01:43]} 27. Qb2 {[%clk 0:02:48]}  Kg8 {[%clk 0:01:43]} 28. Rh1 {[%clk 0:02:48]}  Qg2 {[%clk 0:01:43]} 29. Rcg1 {[%clk 0:02:48]}  Nf6 {[%clk 0:01:43]} 30. Nxf6+ {[%clk 0:02:48]}  Rxf6 {[%clk 0:01:43]} 31. Ng4 {[%clk 0:02:48]}  c5 {[%clk 0:01:43]} 32. Rxg2 {[%clk 0:02:48]}  fxg2 {[%clk 0:01:43]} 33. Rg1 {[%clk 0:02:48]}  Rf3 {[%clk 0:01:43]} 34. Qe5 {[%clk 0:02:48]}  Kf8 {[%clk 0:01:43]} 35. Rxg2 {[%clk 0:02:48]}  Rf5 {[%clk 0:01:43]} 36. Qh8+ {[%clk 0:02:48]}  Ke7 {[%clk 0:01:43]} 37. e4 {[%clk 0:02:48]}  Rf8 {[%clk 0:01:43]} 38. Qe5+ {[%clk 0:02:48]}  Kd8 {[%clk 0:01:43]} 39. Qxc5 {[%clk 0:02:48]}  Rf3 {[%clk 0:01:43]} 40. Rg3 {[%clk 0:02:48]}  Rf7 {[%clk 0:01:43]} 41. Ne5 {[%clk 0:02:48]}  Rff6 {[%clk 0:01:43]} 42. Rf3 {[%clk 0:02:48]}  Rfe6 {[%clk 0:01:43]} 43. Rf8 {[%clk 0:02:48]}  Kc8 {[%clk 0:01:43]} 44. Nc4 {[%clk 0:02:48]}  Ra6 {[%clk 0:01:43]} 45. a4 {[%clk 0:02:48]} 1-0


[Site "http://www.Chess.com"]